bitfinex/quotes_ETHUSD_20250214
["timestamp","ask_amount","ask_price","bid_price","bid_amount"]
[1739507261367,5.31908,2709.5,2709.2,4.3259]
[1739507263556,5.31908,2709.5,2709.3,3.69096]
[1739507265699,5.31908,2709.5,2709.2,4.3259]
[1739507266063,5.31908,2709.5,2709.3,3.69088]
[1739507267204,5.31908,2709.5,2709.4,3.69085]
[1739507270099,0.2496,2709.7,2709.5,3.69068]
[1739507270301,0.2496,2709.7,2709.5,4.32548]
[1739507270461,0.2496,2709.7,2709.6,3.69058]
[1739507270901,0.2496,2709.7,2709.5,8.01609]
[1739507271073,0.2496,2709.7,2709.5,4.32541]
[1739507271764,0.2496,2709.7,2709.5,3.69061]
[1739507271993,1.0109,2709.7,2709.4,3.0]
[1739507272870,1.53293477,2709.6,2709.4,3.0]
[1739507273490,1.0109,2709.7,2709.4,3.0]
[1739507274102,1.0109,2709.7,2709.4,6.69085]
[1739507274807,1.0109,2709.7,2709.4,3.0]
[1739507275179,1.0109,2709.7,2709.4,6.69083]
[1739507276203,1.0109,2709.7,2709.5,3.69069]
[1739507277102,1.0109,2709.7,2709.4,6.69077]
[1739507278214,1.0109,2709.7,2709.4,3.0]
[1739507278616,1.0109,2709.7,2709.4,6.69085]
[1739507279032,0.2496,2709.7,2709.5,3.69062]
[1739507279513,0.2496,2709.7,2709.5,8.01605]
[1739507279922,0.2496,2709.7,2709.5,4.32542]
[1739507281284,0.2496,2709.7,2709.5,3.69062]
[1739507281516,0.2496,2709.7,2709.4,3.0]
[1739507281723,0.8027,2709.6,2709.4,3.0]
[1739507282228,2.33563477,2709.6,2709.1,4.326]
[1739507282401,2.33563477,2709.6,2709.3,3.69098]
[1739507282710,2.33563477,2709.6,2709.4,3.0]
[1739507283634,0.8027,2709.6,2709.4,3.0]
[1739507286054,6.02621477,2709.6,2709.1,4.32602]
[1739507286397,6.02621477,2709.6,2709.1,3.69122]
[1739507286998,2.33563477,2709.6,2709.1,7.38238]
[1739507287203,2.33563477,2709.6,2709.2,3.6911]
[1739507287897,2.33563477,2709.6,2709.1,3.69116]
[1739507288102,2.33563477,2709.6,2709.1,7.38231]
[1739507288732,2.33563477,2709.6,2709.1,3.69115]
[1739507289766,2.33563477,2709.6,2709.1,3.69119]
[1739507289971,6.02622477,2709.6,2709.0,3.0]
[1739507290103,3.69072,2709.5,2709.0,3.0]
[1739507290302,6.02622477,2709.6,2709.0,6.69135]
[1739507290704,1.53293477,2709.2,2708.8,0.11024177]
[1739507291858,1.53293477,2709.0,2708.8,0.11024177]
[1739507292200,0.8201,2708.9,2708.8,0.11024177]
[1739507292402,4.51163,2708.9,2708.8,0.11024177]
[1739507292668,0.8201,2708.9,2708.8,0.11024177]
[1739507292964,5.71067302,2708.9,2708.8,0.11024177]
[1739507293120,2.01914302,2708.9,2708.8,0.11024177]
[1739507294225,7.92867302,2708.9,2708.8,0.11024177]
[1739507296331,4.23714302,2708.9,2708.8,0.11024177]
[1739507298241,7.92867302,2708.9,2708.8,0.11024177]
[1739507299723,13.24775302,2708.9,2708.8,0.11024177]
[1739507300306,9.55622302,2708.9,2708.8,0.11024177]
[1739507302731,13.24775302,2708.9,2708.8,0.11024177]
[1739507303533,9.55622302,2708.9,2708.8,0.11024177]
[1739507303847,8.35718,2708.9,2708.8,0.11024177]
[1739507310076,5.31908,2708.9,2708.8,0.74504177]
[1739507310351,5.58908,2709.3,2708.8,0.74504177]
[1739507310540,11.01157703,2709.3,2708.8,0.74504177]
[1739507310736,9.28007,2709.3,2708.8,0.74504177]
[1739507311319,9.01007,2709.3,2708.8,0.74504177]
[1739507311522,5.31908,2709.3,2708.8,0.74504177]
[1739507311721,5.31908,2709.3,2708.9,3.69141]
[1739507312817,5.31908,2709.3,2709.0,3.69128]
[1739507313251,5.31908,2709.3,2708.9,3.69141]
[1739507313965,5.31908,2709.3,2709.0,3.69139]
[1739507315483,5.31908,2709.3,2708.8,0.74504177]
[1739507315770,1.53284243,2709.2,2708.8,0.74504177]
[1739507316234,1.53284243,2709.2,2708.9,3.69148]
[1739507320458,1.53284243,2709.2,2708.8,0.74504177]
[1739507320853,1.53284243,2709.2,2708.8,4.43670177]
[1739507323096,1.53284243,2709.2,2708.9,0.10935646]
[1739507328618,3.69136,2709.1,2708.9,0.10935646]
[1739507328785,2.36534243,2709.0,2708.9,0.10935646]
[1739507328985,8.27673243,2709.0,2708.9,0.10935646]
[1739507334439,4.58534243,2709.0,2708.9,0.10935646]
[1739507335249,2.49,2709.1,2708.9,0.10935646]
[1739507335416,1.53284243,2709.0,2708.9,0.10935646]
[1739507335596,3.75284243,2709.2,2708.9,3.80088646]
[1739507335801,1.53284243,2709.0,2708.9,0.10935646]
[1739507337232,2.31934243,2709.0,2708.9,0.10935646]
[1739507338854,1.53284243,2709.0,2708.9,0.10935646]
[1739507341334,2.13880822,2709.0,2708.9,0.10935646]
[1739507341540,2.96880822,2709.0,2708.9,0.10935646]
[1739507341750,6.66019822,2709.0,2708.9,0.10935646]
[1739507344129,2.96880822,2709.0,2708.9,0.10935646]
[1739507344342,2.36284243,2709.0,2708.9,0.10935646]
[1739507346773,1.53284243,2709.0,2708.9,0.10935646]
[1739507348581,3.75284243,2709.0,2708.9,0.10935646]
[1739507349467,7.44423243,2709.0,2708.9,0.10935646]
[1739507350175,8.25793243,2709.0,2708.9,0.10935646]
[1739507350547,9.45285167,2709.0,2708.9,0.10935646]
[1739507351079,10.9856941,2709.0,2708.9,0.10935646]
[1739507351477,11.5506941,2709.0,2708.9,0.10935646]
[1739507352264,10.01785167,2709.0,2708.9,0.10935646]
[1739507352877,9.45285167,2709.0,2708.9,0.10935646]
[1739507354061,10.9856941,2709.0,2708.9,0.10935646]
[1739507354777,9.45285167,2709.0,2708.9,0.10935646]
[1739507356143,10.9856941,2709.0,2708.9,0.10935646]
[1739507356345,14.5506941,2709.0,2708.9,0.10935646]
[1739507356545,23.7946941,2709.0,2708.9,0.10935646]
[1739507360753,8.49179243,2708.3,2708.2,0.1484751]
[1739507361457,10.57463486,2708.3,2708.2,0.1484751]
[1739507361656,10.67420032,2708.3,2708.2,0.1484751]
[1739507361857,12.48006235,2708.3,2708.2,0.1484751]
[1739507362781,5.38525032,2708.3,2708.2,0.1484751]
[1739507362976,3.43525032,2708.3,2708.2,0.1484751]
[1739507364089,7.12760032,2708.3,2708.2,0.1484751]
[1739507364292,7.16433578,2708.3,2708.2,0.1484751]
[1739507364452,6.85760032,2708.3,2708.2,0.1484751]
[1739507364653,6.89433578,2708.3,2708.2,0.1484751]
[1739507364991,6.85760032,2708.3,2708.2,0.1484751]
[1739507367576,6.89433578,2708.3,2708.2,0.1484751]
[1739507368296,6.85760032,2708.3,2708.2,0.1484751]
[1739507368594,6.89433578,2708.3,2708.2,0.1484751]
[1739507369196,6.85760032,2708.3,2708.2,0.1484751]
[1739507370113,7.12760032,2708.3,2708.2,0.1484751]
[1739507370556,7.16433578,2708.3,2708.2,0.1484751]
[1739507370979,9.28269036,2708.3,2708.2,0.1484751]
[1739507371180,9.2459549,2708.3,2708.2,0.1484751]
[1739507371799,11.4659549,2708.3,2708.2,0.1484751]
[1739507372504,12.0159549,2708.3,2708.2,0.1484751]
[1739507373562,12.0309549,2708.3,2708.2,0.1484751]
[1739507373765,27.44220522,2708.3,2708.2,0.1484751]
[1739507374664,24.2769549,2708.3,2708.2,0.1484751]
[1739507375168,21.2769549,2708.3,2708.2,0.1484751]
[1739507376520,12.0234549,2708.3,2708.2,0.1484751]
[1739507380093,15.19620522,2708.3,2708.2,0.1484751]
[1739507380309,24.44320522,2708.3,2708.2,0.1484751]
[1739507381506,21.2779549,2708.3,2708.2,0.1484751]
[1739507381708,24.44320522,2708.3,2708.2,0.1484751]
[1739507384411,21.2779549,2708.3,2708.2,0.1484751]
[1739507386841,24.44320522,2708.3,2708.2,0.1484751]
[1739507388915,29.76320522,2708.3,2708.2,0.1484751]
[1739507392245,10.70525032,2708.3,2708.2,0.7832751]
[1739507392536,10.70525032,2708.3,2708.2,0.1484751]
[1739507392963,14.39760032,2708.3,2708.2,0.1484751]
[1739507393568,15.77260032,2708.3,2708.2,0.1484751]
[1739507393771,15.67694952,2708.3,2708.2,0.1484751]
[1739507394062,18.01008147,2708.3,2708.2,0.1484751]
[1739507394266,27.25708147,2708.3,2708.2,0.1484751]
[1739507395629,27.35308709,2708.3,2708.2,0.1484751]
[1739507400637,27.35308709,2708.3,2708.2,0.0984751]
[1739507400831,17.28858709,2708.3,2708.2,0.0984751]
[1739507401036,17.55858709,2708.3,2708.2,0.0984751]
[1739507401549,26.81208709,2708.3,2708.2,0.0984751]
[1739507401717,27.57488709,2708.3,2708.2,0.0984751]
[1739507402529,32.74049223,2708.3,2708.2,0.0984751]
[1739507403520,30.06049223,2708.3,2708.2,0.0984751]
[1739507403728,5.91353,2707.5,2707.3,0.6348]
[1739507404026,6.18358,2707.4,2707.3,0.6348]
[1739507404537,5.91385,2707.2,2707.1,0.6398]
[1739507404736,5.38560514,2707.2,2707.1,0.6398]
[1739507405266,9.07945514,2707.2,2707.1,0.6398]
[1739507405443,5.38560514,2707.2,2707.1,0.6398]
[1739507405844,9.07945514,2707.2,2707.1,0.6398]
[1739507406441,5.38560514,2707.2,2707.1,0.6398]
[1739507407150,3.16560514,2707.2,2707.1,0.6398]
[1739507407643,2.22,2707.4,2707.1,4.33365]
[1739507407644,0.27,2707.4,2707.1,4.33365]
[1739507407831,3.16560514,2707.5,2707.3,0.6348]
[1739507408026,3.16560514,2707.8,2707.3,0.6348]
[1739507408264,0.27,2707.9,2707.6,3.69325]
[1739507408438,3.16560514,2708.1,2707.7,4.32795]
[1739507408643,3.16560514,2708.1,2707.9,0.6348]
[1739507409555,3.16560514,2708.1,2707.9,3.69289]
[1739507409757,3.16560514,2708.1,2708.0,0.6348]
[1739507411669,3.43560514,2708.4,2708.0,4.32756]
[1739507412575,3.16560514,2708.4,2708.0,4.32756]
[1739507412772,11.179,2708.7,2707.4,3.0]
[1739507412773,0.27,2708.7,2708.4,3.69216]
[1739507412927,0.27,2708.7,2708.5,0.6348]
[1739507413773,6.85707514,2709.0,2708.5,0.6348]
[1739507414001,3.43560514,2709.0,2708.5,0.6348]
[1739507414502,7.12706514,2709.0,2708.5,0.6348]
[1739507414665,3.43560514,2709.0,2708.5,4.32688]
[1739507415078,3.16560514,2709.0,2708.7,3.6918]
[1739507415288,5.32,2709.2,2708.8,4.32635]
[1739507415485,5.59,2709.2,2708.8,0.6348]
[1739507416402,9.28121,2709.2,2708.8,0.6348]
[1739507416905,10.62572751,2709.2,2708.8,0.6348]
[1739507417059,9.01121,2709.2,2708.8,0.6348]
[1739507417724,5.32,2709.2,2708.9,0.08058545]
[1739507417894,5.32,2709.2,2708.9,3.77210545]
[1739507418055,5.32,2709.2,2708.9,3.69152]
[1739507418260,5.32,2709.2,2709.0,0.07985787]
[1739507418500,3.43560514,2709.3,2709.0,3.69138]
[1739507418701,3.43560514,2709.3,2709.1,0.0798434]
[1739507419570,3.43560514,2709.3,2708.9,3.69152]
[1739507420100,3.43560514,2709.3,2709.0,0.07985787]
[1739507420266,3.43560514,2709.3,2709.0,3.77122787]
[1739507420466,3.43560514,2709.3,2709.1,0.6348]
[1739507420667,6.1086,2709.7,2709.1,0.6348]
[1739507420899,6.14533546,2709.7,2709.2,3.7699785]
[1739507421202,6.1086,2709.7,2709.3,4.32578]
[1739507421581,6.1086,2709.7,2709.4,3.7695657]
[1739507421915,6.1086,2709.7,2709.5,0.6348]
[1739507422273,6.1086,2709.7,2709.6,0.078731]
[1739507422473,9.79904,2709.7,2709.6,0.078731]
[1739507422675,9.79904,2709.7,2709.2,0.6348]
[1739507423103,9.79904,2709.7,2709.3,0.07851291]
[1739507426075,0.03673546,2709.6,2709.3,0.07851291]
[1739507426592,6.1086,2709.7,2709.3,0.07851291]
[1739507426780,9.79906,2709.7,2709.3,0.07851291]
[1739507427115,9.79909,2709.7,2709.3,0.07851291]
[1739507427323,6.1086,2709.7,2709.3,0.07851291]
[1739507427802,6.1086,2709.7,2709.3,3.76938291]
[1739507428113,6.1086,2709.7,2709.3,3.69087]
[1739507428489,3.16560514,2709.6,2709.4,0.0785442]
[1739507428704,0.03673546,2709.5,2709.4,0.0785442]
[1739507428879,3.69071,2709.5,2709.0,0.6348]
[1739507429075,3.69089,2709.4,2709.0,0.6348]
[1739507429279,3.69089,2709.4,2709.1,0.0785876]
[1739507429719,6.85672514,2709.3,2709.1,0.0785876]
[1739507430014,6.8934606,2709.3,2709.1,0.0785876]
[1739507430176,3.2023406,2709.3,2709.1,0.0785876]
[1739507430834,3.2023406,2709.3,2708.8,4.32645]
[1739507430976,3.16560514,2709.3,2709.2,0.07844888]
[1739507431182,3.16560514,2709.3,2708.8,4.32645]
[1739507431382,9.07622514,2709.6,2709.2,0.07844888]
[1739507431621,9.07622514,2709.6,2708.9,3.69146]
[1739507431926,9.07622514,2709.6,2709.0,0.07858895]
[1739507432428,9.07622514,2709.6,2709.1,3.69126]
[1739507432920,3.16560514,2709.6,2709.2,0.07856001]
[1739507433086,3.16560514,2709.6,2709.3,0.6348]
[1739507433282,3.43560514,2709.6,2709.3,0.6348]
[1739507433501,3.43560514,2709.6,2709.4,0.07853108]
[1739507433722,3.43560514,2709.6,2709.3,0.6348]
[1739507433887,3.43560514,2709.6,2709.5,0.07851661]
[1739507434087,3.43560514,2709.6,2709.4,0.07853108]
[1739507434330,3.43560514,2709.6,2709.5,0.07851661]
[1739507434623,0.2496,2709.7,2709.3,0.03690917]
[1739507434928,0.2496,2709.7,2709.6,0.6348]
[1739507435233,0.2496,2709.7,2709.6,4.32538]
[1739507435522,0.2496,2709.7,2709.6,0.7132237]
[1739507437841,0.2496,2709.7,2709.6,4.4038037]
[1739507446545,0.269,2710.4,2709.6,0.0784237]
[1739507446739,0.269,2710.4,2709.9,3.69016]
[1739507447126,0.269,2710.4,2710.0,3.76781074]
[1739507448211,0.269,2710.4,2710.0,0.07779074]
[1739507448738,0.30573546,2710.4,2710.0,0.07779074]
[1739507448941,3.99530546,2710.4,2710.0,0.07779074]
[1739507449122,0.30573546,2710.4,2710.0,0.07779074]
[1739507449329,0.269,2710.4,2709.8,7.38051]
[1739507449714,0.30573546,2710.4,2709.9,0.4630052]
[1739507449917,3.68963,2710.3,2709.9,0.4630052]
[1739507450447,3.68963,2710.3,2710.0,0.07779074]
[1739507451147,0.269,2710.4,2710.0,0.07779074]
[1739507451657,0.30573546,2710.4,2710.0,0.07779074]
[1739507451832,2.22,2710.3,2710.0,0.07779074]
[1739507454054,2.22,2710.3,2710.0,3.76782074]
[1739507454951,2.22,2710.4,2710.0,3.76782074]
[1739507457062,2.22,2710.5,2710.0,3.76782074]
[1739507458723,2.22,2710.5,2710.0,7.45777074]
[1739507458922,2.22,2710.5,2710.0,3.76774074]
[1739507459372,2.22,2710.5,2710.0,7.45768074]
[1739507459868,2.22,2710.5,2710.0,3.76773074]
[1739507460052,0.269,2710.6,2710.1,3.68976]
[1739507460240,2.489,2710.7,2710.2,0.46296183]
[1739507460443,7.54,2710.7,2710.2,0.46296183]
[1739507460996,0.03673546,2710.6,2710.2,0.46296183]
[1739507462030,2.25673546,2710.6,2710.2,0.07776183]
[1739507462231,2.22,2710.4,2709.9,0.3852]
[1739507462431,2.25673546,2710.4,2710.0,0.0777646]
[1739507463051,5.94631546,2710.4,2710.0,0.0777646]
[1739507463249,3.68965,2710.3,2710.0,0.0777646]
[1739507463476,5.90958,2710.4,2710.0,0.0777646]
[1739507463644,5.94631546,2710.4,2710.0,0.0777646]
[1739507464267,9.63593546,2710.4,2710.0,0.0777646]
[1739507464445,9.5992,2710.4,2710.0,0.0777646]
[1739507464642,5.90958,2710.4,2710.0,0.0777646]
[1739507464847,5.94631546,2710.4,2710.0,0.0777646]
[1739507465287,2.22,2710.4,2710.0,3.7677646]
[1739507465575,2.22,2710.6,2710.2,0.3852]
[1739507465997,2.22,2710.6,2710.3,0.07772122]
[1739507466198,5.90925,2710.6,2710.3,0.07772122]
[1739507466343,5.90925,2710.6,2710.2,0.3852]
[1739507466676,5.32,2710.7,2710.3,0.07772122]
[1739507466837,5.32,2710.7,2710.3,3.68953]
[1739507467038,5.32,2710.7,2710.4,0.0772101]
[1739507468078,5.32,2710.7,2710.5,4.07454]
[1739507468277,5.32,2710.7,2710.6,0.07718119]
[1739507472165,2.22,2710.9,2710.6,0.07718119]
[1739507474397,2.22,2710.9,2710.5,0.3852]
[1739507474897,2.22,2710.9,2710.6,0.07633861]
[1739507475304,9.53040514,2711.0,2710.6,0.07633861]
[1739507475597,8.75460514,2711.0,2710.6,0.07633861]
[1739507476098,10.97460514,2711.0,2710.6,0.07633861]
[1739507477373,14.66330514,2711.0,2710.6,0.07633861]
[1739507478006,10.97460514,2711.0,2710.6,3.76554861]
[1739507478204,5.32,2711.0,2710.9,3.68881]
[1739507478409,2.489,2711.3,2710.7,0.3852]
[1739507478609,2.489,2711.3,2710.9,0.07630178]
[1739507478771,2.22,2711.3,2710.8,3.76512623]
[1739507478971,2.22,2711.3,2711.0,0.07618938]
[1739507479172,2.22,2711.3,2710.9,0.07620383]
[1739507479512,2.22,2711.3,2711.0,0.07618938]
[1739507479685,2.22,2711.3,2710.8,3.68881]
[1739507479885,2.22,2711.3,2710.9,0.07620383]
[1739507481616,9.1106306,2711.3,2710.9,0.07620383]
[1739507481913,5.38560514,2711.3,2710.9,0.07620383]
[1739507482121,5.4223406,2711.3,2710.9,0.07620383]
[1739507482317,3.6884,2711.2,2710.9,0.07620383]
[1739507482681,7.71661551,2711.2,2710.9,0.07620383]
[1739507482882,3.68867,2711.0,2710.5,0.3852]
[1739507483180,3.68867,2711.0,2710.6,0.07580318]
[1739507483490,7.37746,2711.0,2710.6,0.07580318]
[1739507483682,3.68908,2710.7,2710.6,0.07580318]
[1739507483909,3.68908,2710.7,2710.2,0.3852]
[1739507484222,2.9802,2710.8,2710.3,0.07584654]
[1739507484522,2.9802,2710.8,2710.2,4.07494]
[1739507484708,2.9802,2710.8,2710.4,0.07583209]
[1739507484882,2.9802,2710.8,2710.2,7.76459]
[1739507485081,2.9802,2710.8,2710.3,0.07584654]
[1739507485281,2.9802,2710.8,2710.3,3.68959]
[1739507485483,2.9802,2710.8,2710.4,3.76532209]
[1739507485707,6.66955,2710.5,2710.4,0.07583209]
[1739507485908,5.9097,2710.3,2709.9,0.3852]
[1739507486235,2.22,2710.3,2709.9,0.3852]
[1739507486718,4.71855,2710.5,2710.0,0.07624904]
[1739507486929,6.93855,2710.5,2710.0,0.07624904]
[1739507487625,3.68949,2710.4,2710.0,0.07624904]
[1739507487784,6.93855,2710.5,2710.0,0.07624904]
[1739507488828,6.93855,2710.5,2710.0,3.76626904]
[1739507488829,0.269,2710.5,2710.0,3.76626904]
[1739507489028,6.70848,2710.7,2710.1,3.68987]
[1739507489243,0.269,2710.6,2710.0,3.76626904]
[1739507489412,0.269,2710.6,2710.2,0.07638994]
[1739507489614,0.269,2710.6,2710.1,3.76628787]
[1739507489848,0.269,2710.6,2710.3,0.07636895]
[1739507490066,0.269,2710.6,2710.2,0.46158341]
[1739507490067,5.32,2710.6,2710.2,0.46158341]
[1739507490353,5.32,2710.6,2710.3,0.07636895]
[1739507490847,3.68936,2710.5,2710.2,0.3852]
[1739507491050,3.68936,2710.5,2710.4,0.0763545]
[1739507491245,3.68949,2710.4,2710.3,0.07636895]
[1739507491421,3.68949,2710.4,2710.0,0.3852]
[1739507491937,3.68949,2710.4,2710.1,0.07634562]
[1739507492150,3.68976,2710.2,2710.1,0.07634562]
[1739507492712,3.68976,2710.2,2709.8,0.3852]
[1739507492937,3.68976,2710.2,2709.9,0.07637454]
[1739507493811,0.7994,2710.3,2709.9,0.07637454]
[1739507494020,0.7994,2710.3,2709.8,4.07545]
[1739507494244,0.7994,2710.3,2710.0,0.07636007]
[1739507494418,0.7994,2710.3,2709.9,0.07637454]
[1739507494751,0.7994,2710.3,2710.0,0.07636007]
[1739507494952,0.7994,2710.3,2709.8,4.07545]
[1739507495156,0.7994,2710.3,2710.1,0.07634562]
[1739507495519,0.7994,2710.3,2709.8,4.07545]
[1739507495720,0.7994,2710.3,2709.9,0.07637454]
[1739507496155,3.68949,2710.4,2709.9,0.07637454]
[1739507497064,2.22,2710.3,2709.9,0.07637454]
[1739507497475,11.22925,2710.6,2709.9,3.8033339]
[1739507497755,11.49825,2710.6,2710.0,4.0751]
[1739507497964,11.49825,2710.6,2710.0,4.15200209]
[1739507498125,11.22925,2710.6,2710.0,4.15200209]
[1739507498326,11.49825,2710.6,2710.0,4.15200209]
[1739507498530,11.22925,2710.6,2710.0,4.15200209]
[1739507498840,11.49825,2710.6,2710.0,4.15200209]
[1739507499037,0.269,2710.6,2710.1,3.68987]
[1739507499258,0.269,2710.6,2710.2,0.3852]
[1739507499555,0.269,2710.6,2710.2,0.46207318]
[1739507499724,3.99484546,2710.7,2710.2,0.46207318]
[1739507499925,3.68937,2710.5,2710.2,0.46207318]
[1739507500170,3.68949,2710.4,2710.2,0.07687318]
[1739507500324,3.68949,2710.4,2710.0,0.3852]
[1739507500669,3.68949,2710.4,2710.3,0.07685872]
[1739507500836,10.1528466,2710.4,2709.6,0.3852]
[1739507501038,3.68981,2710.2,2709.6,4.07576]
[1739507501868,3.68981,2710.2,2709.7,3.69042]
[1739507503271,3.68981,2710.2,2709.6,4.07576]
[1739507503470,3.68981,2710.2,2709.6,4.07569]
[1739507503764,3.68981,2710.2,2709.6,4.07568]
[1739507506779,10.70560514,2710.4,2709.6,4.07568]
[1739507506979,5.9097,2710.3,2709.7,3.69043]
[1739507507292,5.9097,2710.3,2709.7,3.69036]
[1739507507472,2.22,2710.3,2709.6,0.3852]
[1739507507643,2.22,2710.3,2709.8,3.69021]
[1739507508086,5.90964,2710.3,2709.8,3.69021]
[1739507508610,5.90964,2710.3,2709.6,0.3852]
[1739507508913,9.59938,2710.3,2709.6,4.07569]
[1739507509112,5.90964,2710.3,2709.8,3.6903]
[1739507509613,5.9098,2710.2,2709.6,4.07569]
[1739507509770,0.7899,2710.1,2709.6,4.07569]
[1739507509974,0.7899,2710.1,2709.7,0.07682791]
[1739507512420,0.7899,2710.1,2709.7,3.76723791]
[1739507512620,0.7899,2710.1,2709.7,0.07682791]
[1739507515695,3.69005,2710.0,2709.7,0.07682791]
[1739507516897,4.4542,2709.8,2709.7,0.07682791]
[1739507517190,2.9839,2709.8,2709.3,3.0]
[1739507517423,2.9839,2709.8,2709.7,0.0770892]
[1739507517618,2.9839,2709.8,2709.3,3.0]
[1739507517820,2.9839,2709.8,2709.7,0.0770892]
[1739507517959,6.67422,2709.8,2709.3,3.0]
[1739507518325,6.67422,2709.8,2709.7,0.0770892]
[1739507518464,6.71095546,2709.8,2709.3,3.0]
[1739507518656,6.71095546,2709.8,2709.7,0.0770892]
[1739507518998,2.9839,2709.8,2709.7,0.0770892]
[1739507519300,0.7639,2710.0,2709.6,4.07568]
[1739507519501,5.589,2710.1,2709.7,3.76761026]
[1739507520005,7.809,2710.1,2709.7,3.76761026]
[1739507520299,7.54,2710.1,2709.7,3.76761026]
[1739507520534,5.32,2710.1,2709.7,3.76753026]
[1739507520662,5.32,2710.1,2709.8,3.69017]
[1739507521084,5.32,2710.1,2709.9,0.07708641]
[1739507521304,5.32,2710.1,2709.9,3.76722641]
[1739507522705,0.7639,2710.2,2709.9,3.76722641]
[1739507523132,3.16560514,2710.7,2710.1,3.68984]
[1739507523425,6.1183,2710.8,2710.3,3.68962]
[1739507523928,6.1183,2710.8,2710.4,0.07689653]
[1739507524129,8.3383,2710.8,2710.4,0.46209653]
[1739507524339,8.3383,2710.8,2710.4,0.3852]
[1739507524636,3.0183,2710.8,2710.5,0.07688207]
[1739507525438,3.0183,2710.8,2710.4,0.3852]
[1739507526871,0.7983,2710.8,2710.4,0.3852]
[1739507527058,3.68914,2710.7,2710.2,0.3852]
[1739507527207,3.72587546,2710.7,2710.2,0.3852]
[1739507527407,3.72587546,2710.7,2710.3,0.07645378]
[1739507527608,3.72587546,2710.7,2710.2,0.3852]
[1739507527835,3.72587546,2710.7,2710.4,0.07643933]
[1739507528049,3.68914,2710.7,2710.2,0.3852]
[1739507528236,3.72587546,2710.7,2710.3,0.07645378]
[1739507528422,3.72587546,2710.7,2710.2,0.3852]
[1739507528745,3.72587546,2710.7,2710.3,0.07645378]
[1739507529112,3.72587546,2710.7,2710.2,0.3852]
[1739507529312,3.68914,2710.7,2710.4,0.07643933]
[1739507529539,3.68914,2710.7,2710.3,0.07645378]
[1739507529743,0.7983,2710.8,2710.2,4.07493]
[1739507529943,0.7983,2710.8,2710.4,0.07643933]
[1739507530114,0.7983,2710.8,2710.3,0.07645378]
[1739507530455,4.48726,2710.8,2710.4,0.07643933]
[1739507530676,4.48726,2710.8,2710.2,4.07493]
[1739507530882,0.7983,2710.8,2710.5,0.07642487]
[1739507531085,4.48725,2710.8,2710.5,0.07642487]
[1739507531258,4.48725,2710.8,2710.3,3.68959]
[1739507531458,4.48725,2710.8,2710.4,0.07643933]
[1739507533317,4.48725,2710.8,2710.3,3.68959]
[1739507533711,0.7983,2710.8,2710.4,0.07643933]
[1739507534121,0.7983,2710.8,2710.3,3.68959]
[1739507534615,9.00884,2710.9,2710.4,0.07643933]
[1739507534907,12.69776,2710.9,2710.4,0.07643933]
[1739507535116,3.689,2710.8,2710.4,0.07643933]
[1739507535415,9.00884,2710.9,2710.4,0.07643933]
[1739507535618,9.00884,2710.9,2710.3,3.68956]
[1739507535965,9.00884,2710.9,2710.4,0.07643933]
[1739507536164,5.32,2710.9,2710.4,3.76589933]
[1739507536865,2.22,2710.8,2710.4,3.76589933]
[1739507538292,2.22,2710.8,2710.6,3.68921]
[1739507538538,5.32,2710.9,2710.5,0.3852]
[1739507538690,5.32,2710.9,2710.8,3.68894]
[1739507538891,0.2496,2711.0,2710.8,3.68894]
[1739507539104,0.2496,2711.0,2710.8,3.76501461]
[1739507539506,0.2496,2711.0,2710.8,3.76499461]
[1739507539744,0.2496,2711.0,2710.9,0.3852]
[1739507539948,0.2496,2711.0,2710.9,4.07401]
[1739507540095,0.2496,2711.0,2710.9,4.15007016]
[1739507543209,0.2496,2711.0,2710.9,7.15007016]
[1739507569646,0.2496,2711.0,2710.9,8.6800552]
[1739507575217,0.2496,2711.0,2710.9,7.15007016]
[1739507576010,0.2496,2711.0,2710.9,6.76487016]
[1739507580000,0.2496,2711.0,2710.9,0.07606016]
[1739507580201,1.77958504,2711.0,2710.9,0.07606016]
[1739507580407,2.59738504,2711.0,2710.9,0.07606016]
[1739507580635,2.59738504,2711.0,2710.6,3.68921]
[1739507580839,2.59738504,2711.0,2710.7,0.07460753]
[1739507581241,0.7563,2710.9,2710.7,0.07460753]
[1739507581809,1.52998504,2710.8,2710.7,0.07460753]
[1739507582113,0.7841,2710.7,2710.1,3.85649527]
[1739507582316,0.7584,2710.2,2710.1,3.85649527]
[1739507585145,0.7584,2710.2,2710.1,3.9313657]
[1739507591751,0.7584,2710.2,2710.1,7.6212657]
[1739507594455,0.7584,2710.2,2710.1,3.9313657]
[1739507595473,1.55309747,2710.2,2710.1,0.07487043]
[1739507595649,3.68976,2710.2,2709.6,3.69049]
[1739507595830,0.7924,2710.1,2709.7,3.76672199]
[1739507597229,4.49142,2710.0,2709.7,0.07631199]
[1739507597463,0.8013,2709.9,2709.4,3.69083]
[1739507597764,0.8013,2709.9,2709.5,0.07634092]
[1739507599170,0.8013,2709.9,2709.5,3.76703092]
[1739507599368,0.8013,2709.9,2709.5,0.07634092]
[1739507602900,0.8013,2709.9,2709.6,3.69048]
[1739507603105,0.8013,2709.9,2709.7,3.69043]
[1739507603248,0.8013,2709.9,2709.7,3.76752572]
[1739507605593,0.8013,2709.9,2709.8,3.6903]
[1739507605751,0.8013,2709.9,2709.8,3.76735513]
[1739507606553,0.8044,2710.1,2709.8,0.07705513]
[1739507606753,5.32,2710.3,2710.0,3.69003]
[1739507607052,6.1244,2710.3,2710.1,0.07697908]
[1739507607366,0.8044,2710.3,2710.2,3.68976]
[1739507607897,0.8044,2710.3,2710.2,3.66672463]
[1739507608387,3.42785471,2710.7,2710.3,3.68961]
[1739507608388,0.8204,2710.5,2710.3,3.68961]
[1739507608596,0.8204,2710.5,2710.3,3.68954]
[1739507608790,0.8204,2710.5,2710.4,3.76624936]
[1739507609490,0.8115,2710.8,2710.6,3.68919]
[1739507609690,0.8115,2710.8,2710.7,0.07656581]
[1739507611878,0.8115,2710.8,2710.4,3.68949]
[1739507611879,0.8115,2710.8,2710.5,3.68934]
[1739507612082,0.8115,2710.8,2710.7,0.07648092]